[Event "Early-Titled-Tuesday-Blitz-April-16-2024"]
[Site "Chess.com"]
[Date "2024.04.16"]
[Round "6"]
[White "becemix"]
[Black "manitodeplomo"]
[Result "1/2-1/2"]
[WhiteElo "2495"]
[BlackElo "2633"]
[TimeControl "180+1"]
[EndTime "9:09:09 PDT"]
[Termination "Game drawn - insufficient material"]

1. e4 {[%clk 0:03:00.9]} 1... Nf6 {[%clk 0:02:59.1]} 2. e5 {[%clk 0:02:54.3]}
2... Nd5 {[%clk 0:02:59.1]} 3. c4 {[%clk 0:02:54.8]} 3... Nb6 {[%clk 0:02:58.6]}
4. d4 {[%clk 0:02:55.2]} 4... d6 {[%clk 0:02:58.8]} 5. exd6 {[%clk 0:02:56.1]}
5... cxd6 {[%clk 0:02:58.5]} 6. Nc3 {[%clk 0:02:56.3]} 6... e5 {[%clk
0:02:58.6]} 7. dxe5 {[%clk 0:02:53.9]} 7... dxe5 {[%clk 0:02:59.5]} 8. Qxd8+
{[%clk 0:02:54]} 8... Kxd8 {[%clk 0:03:00.4]} 9. Be3 {[%clk 0:02:46]} 9... Be6
{[%clk 0:02:59.5]} 10. O-O-O+ {[%clk 0:02:42.6]} 10... N8d7 {[%clk 0:02:56.6]}
11. Nf3 {[%clk 0:02:36.9]} 11... f6 {[%clk 0:02:53.8]} 12. b3 {[%clk 0:02:16.3]}
12... Ba3+ {[%clk 0:02:35]} 13. Kb1 {[%clk 0:02:12.3]} 13... Ke7 {[%clk
0:02:35.5]} 14. Bd3 {[%clk 0:02:08.7]} 14... Bc5 {[%clk 0:02:33.2]} 15. Be4
{[%clk 0:01:55.6]} 15... Bxe3 {[%clk 0:02:29.7]} 16. fxe3 {[%clk 0:01:56.5]}
16... Nc5 {[%clk 0:02:28.6]} 17. Bd5 {[%clk 0:01:55.9]} 17... Rad8 {[%clk
0:01:45.6]} 18. e4 {[%clk 0:01:52.9]} 18... a5 {[%clk 0:01:19.9]} 19. Kb2 {[%clk
0:01:31.8]} 19... Bc8 {[%clk 0:01:17.6]} 20. a3 {[%clk 0:01:27.6]} 20... Ne6
{[%clk 0:01:15]} 21. Rd2 {[%clk 0:01:26.8]} 21... h5 {[%clk 0:00:54.3]} 22. Rhd1
{[%clk 0:01:26.4]} 22... g5 {[%clk 0:00:50.7]} 23. Bxe6 {[%clk 0:01:10.3]} 23...
Bxe6 {[%clk 0:00:48.9]} 24. c5 {[%clk 0:01:10.1]} 24... Rxd2+ {[%clk 0:00:43.2]}
25. Rxd2 {[%clk 0:01:11]} 25... Nd7 {[%clk 0:00:42.2]} 26. b4 {[%clk 0:01:11.2]}
26... axb4 {[%clk 0:00:41.7]} 27. axb4 {[%clk 0:01:12.1]} 27... h4 {[%clk
0:00:30.6]} 28. h3 {[%clk 0:01:00.5]} 28... Rc8 {[%clk 0:00:29.2]} 29. Nd5+
{[%clk 0:00:38]} 29... Kf7 {[%clk 0:00:25.2]} 30. Ne1 {[%clk 0:00:33.5]} 30...
Nf8 {[%clk 0:00:10.9]} 31. Nb6 {[%clk 0:00:30.6]} 31... Rc7 {[%clk 0:00:08.3]}
32. Nc2 {[%clk 0:00:30.7]} 32... Ng6 {[%clk 0:00:08]} 33. Ne3 {[%clk 0:00:29.9]}
33... Nf4 {[%clk 0:00:08]} 34. Ned5 {[%clk 0:00:30.3]} 34... Rc6 {[%clk
0:00:05.1]} 35. Rc2 {[%clk 0:00:24.1]} 35... f5 {[%clk 0:00:03.7]} 36. b5 {[%clk
0:00:24]} 36... Rxb6 {[%clk 0:00:01.7]} 37. Nxb6 {[%clk 0:00:17.2]} 37... fxe4
{[%clk 0:00:01.6]} 38. c6 {[%clk 0:00:17.5]} 38... bxc6 {[%clk 0:00:01.3]} 39.
bxc6 {[%clk 0:00:18.4]} 39... e3 {[%clk 0:00:01.5]} 40. c7 {[%clk 0:00:18.2]}
40... e2 {[%clk 0:00:01.5]} 41. Rc1 {[%clk 0:00:09.6]} 41... e1=Q {[%clk
0:00:01.7]} 42. Rxe1 {[%clk 0:00:09.1]} 42... Nd3+ {[%clk 0:00:02.4]} 43. Kc3
{[%clk 0:00:09.3]} 43... Nxe1 {[%clk 0:00:03.3]} 44. c8=Q {[%clk 0:00:09.7]}
44... Bxc8 {[%clk 0:00:03]} 45. Nxc8 {[%clk 0:00:10.6]} 45... Nxg2 {[%clk
0:00:03.2]} 46. Kd3 {[%clk 0:00:10.2]} 46... Nf4+ {[%clk 0:00:03]} 47. Ke4
{[%clk 0:00:11.1]} 47... Nxh3 {[%clk 0:00:03.5]} 48. Kxe5 {[%clk 0:00:11.1]}
48... g4 {[%clk 0:00:04]} 49. Nd6+ {[%clk 0:00:09.1]} 49... Kg6 {[%clk
0:00:03.8]} 50. Nf5 {[%clk 0:00:09.2]} 50... Kg5 {[%clk 0:00:03.6]} 51. Nd4
{[%clk 0:00:09.2]} 51... Nf2 {[%clk 0:00:02.2]} 52. Ne2 {[%clk 0:00:08.5]} 52...
h3 {[%clk 0:00:02.3]} 53. Kd4 {[%clk 0:00:08.4]} 53... Kh4 {[%clk 0:00:02.4]}
54. Ke3 {[%clk 0:00:08.3]} 54... g3 {[%clk 0:00:02.9]} 55. Kf3 {[%clk
0:00:07.9]} 55... h2 {[%clk 0:00:02.9]} 56. Nxg3 {[%clk 0:00:07.7]} 56... Kh3
{[%clk 0:00:02.6]} 57. Kxf2 {[%clk 0:00:07.3]} 57... h1=Q {[%clk 0:00:03]} 58.
Nxh1 {[%clk 0:00:07.7]} 1/2-1/2

[Event "Early-Titled-Tuesday-Blitz-April-16-2024"]
[Site "Chess.com"]
[Date "2024.04.16"]
[Round "6"]
[White "Levanzovsky"]
[Black "viktorskliarov"]
[Result "1-0"]
[WhiteElo "2509"]
[BlackElo "2616"]
[TimeControl "180+1"]
[EndTime "9:09:11 PDT"]
[Termination "Levanzovsky won by resignation"]

1. c4 {[%clk 0:03:00.9]} 1... e5 {[%clk 0:02:59.9]} 2. e3 {[%clk 0:03:00.1]}
2... Nf6 {[%clk 0:02:59.7]} 3. a3 {[%clk 0:03:00.7]} 3... c6 {[%clk 0:02:57]} 4.
Nf3 {[%clk 0:02:55.2]} 4... e4 {[%clk 0:02:54.8]} 5. Nd4 {[%clk 0:02:55.5]} 5...
d5 {[%clk 0:02:53.4]} 6. cxd5 {[%clk 0:02:56.1]} 6... cxd5 {[%clk 0:02:53.9]} 7.
d3 {[%clk 0:02:56.2]} 7... Nc6 {[%clk 0:02:52.9]} 8. Nxc6 {[%clk 0:02:54.6]}
8... bxc6 {[%clk 0:02:53.8]} 9. Qc2 {[%clk 0:02:55]} 9... Bd7 {[%clk 0:02:40.4]}
10. Nd2 {[%clk 0:02:54.8]} 10... exd3 {[%clk 0:02:37.4]} 11. Bxd3 {[%clk
0:02:55.7]} 11... Bd6 {[%clk 0:02:37.7]} 12. O-O {[%clk 0:02:45.4]} 12... O-O
{[%clk 0:02:28.8]} 13. b3 {[%clk 0:02:45.3]} 13... Qe7 {[%clk 0:02:08.5]} 14.
Bb2 {[%clk 0:02:44.1]} 14... Be5 {[%clk 0:02:08.7]} 15. Nf3 {[%clk 0:02:38.3]}
15... Bxb2 {[%clk 0:02:07.3]} 16. Qxb2 {[%clk 0:02:39.2]} 16... c5 {[%clk
0:02:06.2]} 17. Qe5 {[%clk 0:02:32]} 17... Be6 {[%clk 0:01:34.6]} 18. Rfc1
{[%clk 0:02:26.2]} 18... Rac8 {[%clk 0:01:27.3]} 19. h3 {[%clk 0:02:02.6]} 19...
h6 {[%clk 0:01:20.4]} 20. Rc2 {[%clk 0:01:36.9]} 20... Qb7 {[%clk 0:01:17.7]}
21. Rb1 {[%clk 0:00:56.6]} 21... Rfe8 {[%clk 0:00:40.3]} 22. Qf4 {[%clk
0:00:50.3]} 22... c4 {[%clk 0:00:35.8]} 23. Bf1 {[%clk 0:00:49]} 23... cxb3
{[%clk 0:00:35.2]} 24. Rcb2 {[%clk 0:00:49.2]} 24... Rc2 {[%clk 0:00:24.8]} 25.
Nd4 {[%clk 0:00:44.3]} 25... Rxb2 {[%clk 0:00:23.6]} 26. Rxb2 {[%clk 0:00:45.2]}
26... Qe7 {[%clk 0:00:19]} 27. Rxb3 {[%clk 0:00:43.6]} 27... Rc8 {[%clk
0:00:18.5]} 28. Rb8 {[%clk 0:00:35.1]} 28... Rxb8 {[%clk 0:00:16]} 29. Qxb8+
{[%clk 0:00:36]} 29... Kh7 {[%clk 0:00:16.2]} 30. a4 {[%clk 0:00:16]} 30... Ne4
{[%clk 0:00:11.2]} 31. Bd3 {[%clk 0:00:07.1]} 31... g6 {[%clk 0:00:11.5]} 32.
Bxe4 {[%clk 0:00:06.8]} 32... dxe4 {[%clk 0:00:12.4]} 33. Nxe6 {[%clk
0:00:04.1]} 33... fxe6 {[%clk 0:00:10]} 34. Qe5 {[%clk 0:00:03.6]} 34... h5
{[%clk 0:00:08.6]} 35. Qxe4 {[%clk 0:00:03.7]} 35... Qd7 {[%clk 0:00:07.6]} 36.
Qd4 {[%clk 0:00:03.9]} 36... Qc7 {[%clk 0:00:05.9]} 37. h4 {[%clk 0:00:03.9]}
37... a5 {[%clk 0:00:06.2]} 38. g3 {[%clk 0:00:04.3]} 38... Kg8 {[%clk
0:00:04.1]} 39. Qe4 {[%clk 0:00:04.7]} 39... Kf7 {[%clk 0:00:04.2]} 40. Qf4+
{[%clk 0:00:04]} 40... Qxf4 {[%clk 0:00:04.4]} 41. gxf4 {[%clk 0:00:04.7]} 41...
Kf6 {[%clk 0:00:04.3]} 42. Kg2 {[%clk 0:00:05.3]} 42... Kf5 {[%clk 0:00:04.6]}
43. Kf3 {[%clk 0:00:05.9]} 43... Kf6 {[%clk 0:00:04.8]} 44. e4 {[%clk
0:00:06.1]} 44... Kf7 {[%clk 0:00:05.1]} 45. Ke3 {[%clk 0:00:05.8]} 45... Ke7
{[%clk 0:00:05.6]} 46. Kd4 {[%clk 0:00:06.2]} 46... Kd6 {[%clk 0:00:06.2]} 47.
f3 {[%clk 0:00:06.2]} 47... Kc6 {[%clk 0:00:05.9]} 48. Ke5 {[%clk 0:00:06.5]}
48... Kc5 {[%clk 0:00:06.5]} 49. Kxe6 {[%clk 0:00:07]} 49... Kb4 {[%clk
0:00:07.4]} 50. f5 {[%clk 0:00:07.5]} 50... gxf5 {[%clk 0:00:06.7]} 51. exf5
{[%clk 0:00:08.4]} 51... Kxa4 {[%clk 0:00:07.3]} 52. f6 {[%clk 0:00:08.6]} 52...
Kb3 {[%clk 0:00:08.2]} 53. f7 {[%clk 0:00:08.2]} 53... a4 {[%clk 0:00:09.1]} 54.
f8=Q {[%clk 0:00:08.4]} 54... a3 {[%clk 0:00:10]} 55. Qb8+ {[%clk 0:00:06.6]}
55... Ka2 {[%clk 0:00:09.7]} 56. Qh2+ {[%clk 0:00:06.2]} 56... Kb1 {[%clk
0:00:09.7]} 57. Qg1+ {[%clk 0:00:06.3]} 57... Kb2 {[%clk 0:00:10]} 58. Qf2+
{[%clk 0:00:06.9]} 58... Kb1 {[%clk 0:00:10.3]} 59. Qe1+ {[%clk 0:00:07.3]}
59... Kb2 {[%clk 0:00:10.9]} 60. Qd2+ {[%clk 0:00:06.8]} 60... Kb1 {[%clk
0:00:11.4]} 61. Qb4+ {[%clk 0:00:05]} 61... Ka2 {[%clk 0:00:11.1]} 62. Kf5
{[%clk 0:00:04.8]} 62... Ka1 {[%clk 0:00:11.2]} 63. Qxa3+ {[%clk 0:00:05.7]} 1-0

[Event "Early-Titled-Tuesday-Blitz-April-16-2024"]
[Site "Chess.com"]
[Date "2024.04.16"]
[Round "6"]
[White "RandomNoob04"]
[Black "FaustinoOro"]
[Result "1/2-1/2"]
[WhiteElo "2665"]
[BlackElo "2936"]
[TimeControl "180+1"]
[EndTime "9:09:14 PDT"]
[Termination "Game drawn by repetition"]

1. e4 {[%clk 0:03:00.9]} 1... e5 {[%clk 0:03:00.1]} 2. d4 {[%clk 0:03:01.2]}
2... exd4 {[%clk 0:02:59.4]} 3. Qxd4 {[%clk 0:03:02.1]} 3... Nf6 {[%clk
0:02:56.7]} 4. e5 {[%clk 0:03:01]} 4... Nc6 {[%clk 0:02:56.3]} 5. Qe3 {[%clk
0:03:01.6]} 5... Nd5 {[%clk 0:02:55.5]} 6. Qe4 {[%clk 0:03:02.5]} 6... Nb6
{[%clk 0:02:55.4]} 7. Nf3 {[%clk 0:03:03.1]} 7... Be7 {[%clk 0:02:55.6]} 8. Nc3
{[%clk 0:03:02.9]} 8... d6 {[%clk 0:02:30.2]} 9. exd6 {[%clk 0:03:03.8]} 9...
cxd6 {[%clk 0:02:31.1]} 10. Bg5 {[%clk 0:02:57.3]} 10... Be6 {[%clk 0:02:22.4]}
11. Bxe7 {[%clk 0:02:55.9]} 11... Qxe7 {[%clk 0:02:23.3]} 12. O-O-O {[%clk
0:02:53.2]} 12... O-O-O {[%clk 0:02:09.7]} 13. Bb5 {[%clk 0:02:45.6]} 13... Qc7
{[%clk 0:01:48.3]} 14. Ng5 {[%clk 0:02:32.5]} 14... Rde8 {[%clk 0:01:48.6]} 15.
Nxe6 {[%clk 0:02:16]} 15... Rxe6 {[%clk 0:01:48.6]} 16. Qg4 {[%clk 0:02:16.2]}
16... g6 {[%clk 0:01:39.4]} 17. Bc4 {[%clk 0:01:58.5]} 17... Nxc4 {[%clk
0:01:38.1]} 18. Qxc4 {[%clk 0:01:59.4]} 18... a6 {[%clk 0:01:21.4]} 19. Nd5
{[%clk 0:01:54.7]} 19... Qa5 {[%clk 0:01:21.8]} 20. Kb1 {[%clk 0:01:18.4]} 20...
Kb8 {[%clk 0:01:19]} 21. Qf4 {[%clk 0:01:18.2]} 21... f5 {[%clk 0:01:09.1]} 22.
Ne3 {[%clk 0:01:17.9]} 22... Qe5 {[%clk 0:01:04.4]} 23. Qa4 {[%clk 0:01:15.4]}
23... Rhe8 {[%clk 0:01:03.4]} 24. Qa3 {[%clk 0:01:13.9]} 24... Qc5 {[%clk
0:00:59.1]} 25. Qb3 {[%clk 0:01:06.1]} 25... f4 {[%clk 0:00:50.3]} 26. Nd5
{[%clk 0:01:02.1]} 26... Nd4 {[%clk 0:00:35.1]} 27. Qd3 {[%clk 0:00:41.9]} 27...
Qxd5 {[%clk 0:00:33.9]} 28. Qxd4 {[%clk 0:00:42.5]} 28... Qxg2 {[%clk
0:00:24.1]} 29. Qxf4 {[%clk 0:00:42.8]} 29... Re2 {[%clk 0:00:15.8]} 30. b3
{[%clk 0:00:23.9]} 30... Rxf2 {[%clk 0:00:14.3]} 31. Qxd6+ {[%clk 0:00:23.8]}
31... Ka8 {[%clk 0:00:15]} 32. Rhe1 {[%clk 0:00:17.6]} 32... Rfe2 {[%clk
0:00:10.6]} 33. Rxe2 {[%clk 0:00:15.6]} 33... Qxe2 {[%clk 0:00:11.5]} 34. Rd2
{[%clk 0:00:12.5]} 34... Qf1+ {[%clk 0:00:11.5]} 35. Kb2 {[%clk 0:00:12.8]}
35... g5 {[%clk 0:00:12.1]} 36. Qg3 {[%clk 0:00:09.3]} 36... Qf6+ {[%clk
0:00:11.4]} 37. Qc3 {[%clk 0:00:09.2]} 37... Qf4 {[%clk 0:00:11.9]} 38. Rd4
{[%clk 0:00:08.7]} 38... Qxh2 {[%clk 0:00:11.6]} 39. Qd3 {[%clk 0:00:07.8]}
39... Qe5 {[%clk 0:00:11.3]} 40. Kb1 {[%clk 0:00:03.6]} 40... h5 {[%clk
0:00:09.1]} 41. Rd5 {[%clk 0:00:03.9]} 41... Qe1+ {[%clk 0:00:05.8]} 42. Kb2
{[%clk 0:00:04.4]} 42... Qe7 {[%clk 0:00:06.7]} 43. Qf5 {[%clk 0:00:03.5]} 43...
Rg8 {[%clk 0:00:05.9]} 44. Re5 {[%clk 0:00:02.9]} 44... Qg7 {[%clk 0:00:05.8]}
45. c3 {[%clk 0:00:02.6]} 45... g4 {[%clk 0:00:06]} 46. Qxh5 {[%clk 0:00:01.8]}
46... g3 {[%clk 0:00:06.7]} 47. Re1 {[%clk 0:00:01.5]} 47... g2 {[%clk
0:00:07.2]} 48. Re8+ {[%clk 0:00:01.6]} 48... Rxe8 {[%clk 0:00:04.1]} 49. Qxe8+
{[%clk 0:00:02.5]} 49... Ka7 {[%clk 0:00:04.8]} 50. Qe3+ {[%clk 0:00:03.2]}
50... b6 {[%clk 0:00:05.5]} 51. Qg1 {[%clk 0:00:04]} 51... Qg3 {[%clk
0:00:05.6]} 52. Ka3 {[%clk 0:00:04]} 52... Qf3 {[%clk 0:00:05.7]} 53. Qh2 {[%clk
0:00:03.5]} 53... a5 {[%clk 0:00:04.6]} 54. Qc7+ {[%clk 0:00:03.3]} 54... Ka6
{[%clk 0:00:05.3]} 55. Qc8+ {[%clk 0:00:03.3]} 55... Qb7 {[%clk 0:00:06]} 56.
Qc4+ {[%clk 0:00:03]} 56... Ka7 {[%clk 0:00:05.7]} 57. Qg4 {[%clk 0:00:03.5]}
57... Qe7+ {[%clk 0:00:05.1]} 58. b4 {[%clk 0:00:02.5]} 58... axb4+ {[%clk
0:00:04.9]} 59. cxb4 {[%clk 0:00:03.4]} 59... Qe3+ {[%clk 0:00:05.3]} 60. Ka4
{[%clk 0:00:04]} 60... g1=Q {[%clk 0:00:02.8]} 61. Qd7+ {[%clk 0:00:04.4]} 61...
Kb8 {[%clk 0:00:03.4]} 62. Qd8+ {[%clk 0:00:04.8]} 62... Kb7 {[%clk 0:00:04.1]}
63. Qd7+ {[%clk 0:00:05.4]} 63... Kb8 {[%clk 0:00:04.8]} 64. Qd8+ {[%clk
0:00:05.9]} 64... Ka7 {[%clk 0:00:05.7]} 65. Qd7+ {[%clk 0:00:06.5]} 65... Kb8
{[%clk 0:00:06.2]} 1/2-1/2

[Event "Early-Titled-Tuesday-Blitz-April-16-2024"]
[Site "Chess.com"]
[Date "2024.04.16"]
[Round "6"]
[White "Root_21"]
[Black "Durarbayli"]
[Result "0-1"]
[WhiteElo "2636"]
[BlackElo "2877"]
[TimeControl "180+1"]
[EndTime "9:09:20 PDT"]
[Termination "Durarbayli won by resignation"]

1. e4 {[%clk 0:03:00.9]} 1... e6 {[%clk 0:03:00.2]} 2. d4 {[%clk 0:03:00.8]}
2... d5 {[%clk 0:03:00.7]} 3. Nc3 {[%clk 0:03:01.3]} 3... Nf6 {[%clk 0:03:00.5]}
4. Bg5 {[%clk 0:03:01.3]} 4... dxe4 {[%clk 0:03:00.6]} 5. Nxe4 {[%clk
0:03:01.4]} 5... Nbd7 {[%clk 0:03:01.2]} 6. Bd3 {[%clk 0:02:59.8]} 6... h6
{[%clk 0:02:56]} 7. Bxf6 {[%clk 0:02:41]} 7... Nxf6 {[%clk 0:02:56.9]} 8. Nf3
{[%clk 0:02:41.5]} 8... Nxe4 {[%clk 0:02:56.6]} 9. Bxe4 {[%clk 0:02:41.8]} 9...
c5 {[%clk 0:02:57.5]} 10. Qe2 {[%clk 0:02:40.1]} 10... Qa5+ {[%clk 0:02:55.6]}
11. c3 {[%clk 0:02:39.6]} 11... Be7 {[%clk 0:02:56.1]} 12. O-O {[%clk
0:02:34.2]} 12... cxd4 {[%clk 0:02:54.5]} 13. Nxd4 {[%clk 0:02:32.9]} 13... O-O
{[%clk 0:02:54.4]} 14. Rfd1 {[%clk 0:02:31.1]} 14... Rd8 {[%clk 0:02:32.9]} 15.
a4 {[%clk 0:02:07.5]} 15... a6 {[%clk 0:02:24.9]} 16. Rd3 {[%clk 0:01:51.3]}
16... Bf6 {[%clk 0:02:17.7]} 17. Nb3 {[%clk 0:01:40.4]} 17... Qc7 {[%clk
0:02:17.2]} 18. Rxd8+ {[%clk 0:01:34.1]} 18... Bxd8 {[%clk 0:02:15.4]} 19. Qe3
{[%clk 0:01:19.8]} 19... Be7 {[%clk 0:02:11]} 20. a5 {[%clk 0:01:12.3]} 20...
Bd7 {[%clk 0:02:09.8]} 21. Qb6 {[%clk 0:01:09.5]} 21... Qxb6 {[%clk 0:01:35.6]}
22. axb6 {[%clk 0:01:10.4]} 22... Rb8 {[%clk 0:01:36.1]} 23. Na5 {[%clk
0:01:08.5]} 23... Bc8 {[%clk 0:01:35.6]} 24. b4 {[%clk 0:00:59.1]} 24... f5
{[%clk 0:01:30.3]} 25. Bf3 {[%clk 0:00:55.6]} 25... Kf7 {[%clk 0:01:30]} 26. Rd1
{[%clk 0:00:53.3]} 26... Kf6 {[%clk 0:01:17.8]} 27. g3 {[%clk 0:00:48.1]} 27...
g5 {[%clk 0:01:16.2]} 28. Rb1 {[%clk 0:00:35.4]} 28... e5 {[%clk 0:01:16.1]} 29.
Bd5 {[%clk 0:00:35.1]} 29... Bd8 {[%clk 0:01:14.3]} 30. Nc4 {[%clk 0:00:34]}
30... Bd7 {[%clk 0:01:09]} 31. Rd1 {[%clk 0:00:32.2]} 31... Ba4 {[%clk
0:01:06.9]} 32. Rd2 {[%clk 0:00:32.2]} 32... Bb5 {[%clk 0:00:52.5]} 33. Na3
{[%clk 0:00:19.8]} 33... Bxb6 {[%clk 0:00:48.9]} 34. Nxb5 {[%clk 0:00:18.1]}
34... axb5 {[%clk 0:00:49.8]} 35. Bg2 {[%clk 0:00:17.3]} 35... Ke6 {[%clk
0:00:47.3]} 36. Bf1 {[%clk 0:00:17.1]} 36... e4 {[%clk 0:00:44.5]} 37. Bxb5
{[%clk 0:00:17.1]} 37... e3 {[%clk 0:00:44.6]} 38. Re2 {[%clk 0:00:17.3]} 38...
f4 {[%clk 0:00:45.2]} 39. gxf4 {[%clk 0:00:17.4]} 39... gxf4 {[%clk 0:00:46.1]}
40. Kg2 {[%clk 0:00:16.8]} 40... Rc8 {[%clk 0:00:44]} 41. c4 {[%clk 0:00:16.7]}
41... Bd4 {[%clk 0:00:41.4]} 42. Kf3 {[%clk 0:00:15.9]} 42... Ke5 {[%clk
0:00:35.4]} 43. fxe3 {[%clk 0:00:14.5]} 43... fxe3 {[%clk 0:00:36.3]} 44. Rg2
{[%clk 0:00:14.5]} 44... Rf8+ {[%clk 0:00:36.7]} 45. Ke2 {[%clk 0:00:14.7]}
45... Ra8 {[%clk 0:00:36.2]} 46. Kf3 {[%clk 0:00:11.6]} 46... Ra1 {[%clk
0:00:32.7]} 47. c5 {[%clk 0:00:11.1]} 47... Rb1 {[%clk 0:00:31.8]} 48. c6 {[%clk
0:00:11.3]} 48... bxc6 {[%clk 0:00:29]} 49. Bxc6 {[%clk 0:00:11.5]} 49... Rxb4
{[%clk 0:00:29.7]} 50. Rg8 {[%clk 0:00:10.1]} 50... Rb2 {[%clk 0:00:26.4]} 51.
Rg2 {[%clk 0:00:06.9]} 51... Rb6 {[%clk 0:00:26.5]} 52. Be4 {[%clk 0:00:05.8]}
52... Rf6+ {[%clk 0:00:26.8]} 53. Ke2 {[%clk 0:00:05.9]} 53... Kxe4 {[%clk
0:00:27.1]} 54. Rg4+ {[%clk 0:00:06.6]} 54... Kd5 {[%clk 0:00:27.1]} 55. Kd3
{[%clk 0:00:07.5]} 55... Bc5 {[%clk 0:00:26.3]} 56. Rh4 {[%clk 0:00:07.4]} 56...
Kc6 {[%clk 0:00:22]} 57. Rh5 {[%clk 0:00:07.8]} 57... Rd6+ {[%clk 0:00:22.2]}
58. Ke2 {[%clk 0:00:07.3]} 58... Rd2+ {[%clk 0:00:22.4]} 59. Kf3 {[%clk
0:00:07.7]} 59... Rd6 {[%clk 0:00:20]} 60. Ke2 {[%clk 0:00:07.4]} 60... Kb5
{[%clk 0:00:20.6]} 61. Re5 {[%clk 0:00:06.7]} 61... Kc4 {[%clk 0:00:20.7]} 62.
h4 {[%clk 0:00:07.1]} 62... Bd4 {[%clk 0:00:21]} 63. Rf5 {[%clk 0:00:07.3]}
63... Ra6 {[%clk 0:00:21]} 64. Rf7 {[%clk 0:00:06.6]} 64... Ra2+ {[%clk
0:00:20.8]} 65. Kf3 {[%clk 0:00:03.3]} 65... Rf2+ {[%clk 0:00:20.7]} 66. Kg3
{[%clk 0:00:03.1]} 66... Rxf7 {[%clk 0:00:21.6]} 67. h5 {[%clk 0:00:03.3]} 67...
Kd3 {[%clk 0:00:20.9]} 68. Kg4 {[%clk 0:00:03.5]} 68... Ke4 {[%clk 0:00:20.9]}
0-1

[Event "Early-Titled-Tuesday-Blitz-April-16-2024"]
[Site "Chess.com"]
[Date "2024.04.16"]
[Round "6"]
[White "VinzentSpitzl"]
[Black "Meri-Arabidze"]
[Result "1-0"]
[WhiteElo "2482"]
[BlackElo "2683"]
[TimeControl "180+1"]
[EndTime "9:09:21 PDT"]
[Termination "VinzentSpitzl won on time"]

1. e4 {[%clk 0:03:00.9]} 1... c5 {[%clk 0:03:00]} 2. Nf3 {[%clk 0:02:59.7]} 2...
e6 {[%clk 0:03:00.6]} 3. d4 {[%clk 0:03:00.1]} 3... cxd4 {[%clk 0:03:01.5]} 4.
Nxd4 {[%clk 0:03:00.7]} 4... Nc6 {[%clk 0:03:01.9]} 5. Nc3 {[%clk 0:03:01.1]}
5... a6 {[%clk 0:03:02.4]} 6. Be3 {[%clk 0:02:59.4]} 6... Nf6 {[%clk 0:03:02.5]}
7. Be2 {[%clk 0:02:57.6]} 7... Qc7 {[%clk 0:03:01.7]} 8. O-O {[%clk 0:02:55.6]}
8... Be7 {[%clk 0:03:01.9]} 9. f4 {[%clk 0:02:53.6]} 9... d6 {[%clk 0:03:02.3]}
10. Qe1 {[%clk 0:02:53.4]} 10... O-O {[%clk 0:03:02]} 11. Qg3 {[%clk 0:02:53.6]}
11... Nxd4 {[%clk 0:03:00.7]} 12. Bxd4 {[%clk 0:02:53.5]} 12... b5 {[%clk
0:03:01.4]} 13. a3 {[%clk 0:02:53.5]} 13... Bb7 {[%clk 0:03:01.7]} 14. Rae1
{[%clk 0:02:49.2]} 14... g6 {[%clk 0:02:59.2]} 15. Bd3 {[%clk 0:02:41.9]} 15...
Nh5 {[%clk 0:02:58.2]} 16. Qf2 {[%clk 0:02:31.7]} 16... Nxf4 {[%clk 0:02:55.5]}
17. Qxf4 {[%clk 0:02:31.2]} 17... e5 {[%clk 0:02:55.9]} 18. Qf2 {[%clk
0:02:29.8]} 18... exd4 {[%clk 0:02:55.5]} 19. Nd5 {[%clk 0:02:28.6]} 19... Bxd5
{[%clk 0:02:48.4]} 20. exd5 {[%clk 0:02:29.5]} 20... Rae8 {[%clk 0:02:36.4]} 21.
Qxd4 {[%clk 0:02:24.1]} 21... Bg5 {[%clk 0:02:35.5]} 22. Re4 {[%clk 0:02:14]}
22... Bh6 {[%clk 0:02:22.5]} 23. c3 {[%clk 0:02:09.1]} 23... Bg7 {[%clk
0:02:21.9]} 24. Qe3 {[%clk 0:02:07.9]} 24... Be5 {[%clk 0:02:19.2]} 25. Qf3
{[%clk 0:01:56]} 25... f5 {[%clk 0:02:18.7]} 26. Re2 {[%clk 0:01:55]} 26... Re7
{[%clk 0:02:12.9]} 27. g3 {[%clk 0:01:51.9]} 27... Rfe8 {[%clk 0:02:12.4]} 28.
Rfe1 {[%clk 0:01:52]} 28... Kg7 {[%clk 0:02:02.2]} 29. Kg2 {[%clk 0:01:52]}
29... Qc5 {[%clk 0:02:01.4]} 30. Bb1 {[%clk 0:01:46.1]} 30... a5 {[%clk
0:01:59.1]} 31. b4 {[%clk 0:01:33.5]} 31... axb4 {[%clk 0:01:58.7]} 32. cxb4
{[%clk 0:01:23.2]} 32... Qa7 {[%clk 0:01:48.7]} 33. h4 {[%clk 0:01:18]} 33... h5
{[%clk 0:01:44.6]} 34. Rf1 {[%clk 0:00:59.5]} 34... Rf7 {[%clk 0:01:37.7]} 35.
Rfe1 {[%clk 0:00:59.3]} 35... Ra8 {[%clk 0:01:36.1]} 36. Re3 {[%clk 0:00:49]}
36... Rc8 {[%clk 0:01:26.8]} 37. Qe2 {[%clk 0:00:32.2]} 37... Rc4 {[%clk
0:01:07.4]} 38. Rxe5 {[%clk 0:00:29.7]} 38... dxe5 {[%clk 0:01:08]} 39. Qxe5+
{[%clk 0:00:30.2]} 39... Kh7 {[%clk 0:01:08.7]} 40. Qe6 {[%clk 0:00:23.6]} 40...
Qd7 {[%clk 0:01:01.5]} 41. Bd3 {[%clk 0:00:19.2]} 41... Rc3 {[%clk 0:00:53.5]}
42. Bxb5 {[%clk 0:00:19.1]} 42... Qc7 {[%clk 0:00:28.9]} 43. d6 {[%clk
0:00:19.4]} 43... Qb7+ {[%clk 0:00:29.2]} 44. Kh3 {[%clk 0:00:19.4]} 44... Rg7
{[%clk 0:00:25.9]} 45. d7 {[%clk 0:00:17.7]} 45... Qf3 {[%clk 0:00:13.8]} 46.
Rg1 {[%clk 0:00:16.1]} 46... Qg4+ {[%clk 0:00:10.1]} 47. Kh2 {[%clk 0:00:15.9]}
47... Rc2+ {[%clk 0:00:06.3]} 48. Rg2 {[%clk 0:00:16.2]} 48... Rxg2+ {[%clk
0:00:04.2]} 49. Kxg2 {[%clk 0:00:17.1]} 49... Qd4 {[%clk 0:00:04.8]} 50. Qe8
{[%clk 0:00:07.3]} 50... Rg8 {[%clk 0:00:05.2]} 51. Qe7+ {[%clk 0:00:05]} 51...
Kh6 {[%clk 0:00:03.1]} 52. Qe2 {[%clk 0:00:05.1]} 52... Qd6 {[%clk 0:00:01.2]}
53. a4 {[%clk 0:00:04.9]} 53... Kh7 {[%clk 0:00:01.2]} 54. Qc4 {[%clk 0:00:04]}
54... Rg7 {[%clk 0:00:01.1]} 55. a5 {[%clk 0:00:03.8]} 55... Re7 {[%clk
0:00:01.3]} 56. a6 {[%clk 0:00:03.4]} 56... Qd2+ {[%clk 0:00:01.6]} 57. Kh3
{[%clk 0:00:02.9]} 57... Qe1 {[%clk 0:00:02]} 58. Qf1 {[%clk 0:00:02.8]} 58...
Qe4 {[%clk 0:00:01.7]} 59. Qf2 {[%clk 0:00:02.8]} 59... Qg4+ {[%clk 0:00:01.9]}
60. Kg2 {[%clk 0:00:02.7]} 60... Qd1 {[%clk 0:00:01.2]} 61. a7 {[%clk 0:00:03]}
1-0